bitfinex/quotes_BTCUSD_20240729
["timestamp","ask_amount","ask_price","bid_price","bid_amount"]
[1722212311618,0.1,69000.0,68999.0,0.579717]
[1722212311751,0.1,69000.0,68999.0,0.811604]
[1722212311958,0.1,69005.0,69004.0,0.347805]
[1722212312159,0.1,69005.0,69004.0,0.579675]
[1722212312581,0.1,69002.0,69001.0,0.231878]
[1722212312788,0.1,68996.0,68995.0,0.231898]
[1722212312944,0.1,68995.0,68994.0,0.07512979]
[1722212313138,0.1,68995.0,68994.0,0.65488979]
[1722212313363,0.1,68995.0,68994.0,0.88679379]
[1722212313770,0.1,68995.0,68994.0,0.42498579]
[1722212313981,0.1,68995.0,68994.0,0.30903379]
[1722212314177,0.1,69000.0,68999.0,0.463774]
[1722212314377,0.1,69000.0,68999.0,0.579717]
[1722212315097,0.1,69000.0,68994.0,0.22812979]
[1722212315318,0.12572238,69015.0,68994.0,0.22812979]
[1722212315319,0.1,69003.0,69002.0,0.347815]
[1722212315626,0.1,69003.0,69002.0,0.579692]
[1722212315923,0.1,69003.0,69002.0,0.811569]
[1722212316121,0.1,69009.0,69008.0,0.347785]
[1722212316297,0.12953143,69021.0,69009.0,0.579632]
[1722212316298,0.1,69010.0,69009.0,0.579632]
[1722212316500,0.1,69010.0,69009.0,0.811485]
[1722212316701,0.1,69006.0,69005.0,0.231867]
[1722212316878,0.1,69006.0,69005.0,0.579667]
[1722212317085,0.1,69006.0,69005.0,0.811534]
[1722212317295,0.1,69006.0,69004.0,0.07512979]
[1722212317296,0.05,69005.0,69004.0,0.07512979]
[1722212317483,0.05,69005.0,69004.0,0.19106479]
[1722212317484,0.1,69005.0,69004.0,0.19106479]
[1722212317682,0.1,69005.0,69004.0,0.42293479]
[1722212317907,0.1,69005.0,69004.0,0.19106479]
[1722212318105,0.1,69005.0,69004.0,0.42293479]
[1722212318282,0.1,69005.0,69004.0,0.07512979]
[1722212318484,0.1,69005.0,69004.0,0.07412979]
[1722212318922,0.1,69005.0,69004.0,0.19006479]
[1722212319357,0.1,69005.0,69004.0,0.42593479]
[1722212319810,0.1,69005.0,69004.0,0.42193479]
[1722212320036,0.1,69005.0,69004.0,0.42793479]
[1722212320037,0.101,69005.0,69004.0,0.42793479]
[1722212320237,0.1776,69005.0,69004.0,0.08012979]
[1722212320406,0.1776,69005.0,69004.0,0.07412979]
[1722212320657,0.22083214,69005.0,69004.0,0.07412979]
[1722212320869,0.18663703,69005.0,69004.0,0.07412979]
[1722212321085,0.25148525,69005.0,69004.0,0.07412979]
[1722212321323,0.25148525,69005.0,69004.0,0.42193479]
[1722212321324,0.11003703,69005.0,69004.0,0.42193479]
[1722212321534,0.15325995,69005.0,69004.0,0.07412979]
[1722212321752,0.15525995,69005.0,69004.0,0.19006479]
[1722212321979,0.15225995,69005.0,69004.0,0.19006479]
[1722212322191,0.15337576,69005.0,69004.0,0.07412979]
[1722212322398,0.17486746,69005.0,69004.0,0.08012979]
[1722212322599,0.17486746,69005.0,69004.0,0.07412979]
[1722212322804,0.11003724,69005.0,69004.0,0.07412979]
[1722212322969,0.11003724,69005.0,69004.0,0.07812979]
[1722212323268,0.09547994,69005.0,69004.0,0.30999979]
[1722212323437,0.1,69007.0,69006.0,0.114931]
[1722212323569,0.1,69007.0,69006.0,0.578657]
[1722212323772,0.1,69009.0,69006.0,0.231863]
[1722212323980,0.1,69008.0,69006.0,0.03159928]
[1722212324188,0.1,69008.0,69004.0,0.08712979]
[1722212324189,0.1,69008.0,69007.0,0.81151]
[1722212324396,0.1,69008.0,69007.0,0.57965]
[1722212325284,0.1,69008.0,69007.0,0.11493]
[1722212325486,0.1,69005.0,69004.0,0.30599979]
[1722212325689,0.10903617,69005.0,69004.0,0.42193479]
[1722212326688,0.10903617,69005.0,69004.0,0.19006479]
[1722212326893,0.10903617,69005.0,69004.0,0.07512979]
[1722212327069,0.10903617,69005.0,69004.0,0.001]
[1722212327070,0.45683617,69005.0,69004.0,0.001]
[1722212327320,0.75376608,69005.0,69004.0,0.001]
[1722212327557,0.45014821,69005.0,69004.0,0.001]
[1722212327791,0.33321521,69005.0,69004.0,0.001]
[1722212328017,0.551395,69005.0,69004.0,0.001]
[1722212328249,0.1,68995.0,68994.0,0.116876]
[1722212328496,0.10903801,68995.0,68994.0,0.116876]
[1722212328747,0.15228457,68995.0,68994.0,0.34878]
[1722212328996,0.15228457,68995.0,68994.0,0.000924]
[1722212328997,0.10903801,68995.0,68994.0,0.000924]
[1722212329229,0.19552991,68995.0,68994.0,0.000924]
[1722212329690,0.19652991,68995.0,68994.0,0.008924]
[1722212329924,0.11003801,68995.0,68994.0,0.008924]
[1722212330667,0.11003801,68995.0,68994.0,0.012924]
[1722212330668,0.11103801,68995.0,68994.0,0.012924]
[1722212331132,0.11003801,68995.0,68994.0,0.008924]
[1722212331363,0.1828,68995.0,68994.0,0.008924]
[1722212331595,0.19183851,68995.0,68994.0,0.008924]
[1722212331823,0.1828,68995.0,68994.0,0.008924]
[1722212332054,0.19183906,68995.0,68994.0,0.008924]
[1722212332751,0.19183906,68995.0,68991.0,0.06130379]
[1722212332752,0.1,68992.0,68991.0,0.06130379]
[1722212332990,0.19559179,68992.0,68991.0,0.06130379]
[1722212333198,0.19561422,68992.0,68991.0,0.06130379]
[1722212333394,0.10903906,68992.0,68991.0,0.17726079]
[1722212333681,0.10903906,68992.0,68991.0,0.06130379]
[1722212333796,0.1104712,68992.0,68991.0,0.06130379]
[1722212333991,0.10903906,68992.0,68991.0,0.06130379]
[1722212334322,0.21723248,68992.0,68991.0,0.06130379]
[1722212334496,0.21729488,68992.0,68991.0,0.06130379]
[1722212335135,0.10903872,68992.0,68991.0,0.06130379]
[1722212335344,0.10903872,68992.0,68991.0,0.06430379]
[1722212337417,0.10903872,68992.0,68991.0,0.18026079]
[1722212337626,0.1090387,68992.0,68991.0,0.06430379]
[1722212338279,0.13179189,68992.0,68991.0,0.06430379]
[1722212338708,0.13179189,68992.0,68991.0,9.06430379]
[1722212338949,0.13179189,68992.0,68991.0,9.18026079]
[1722212339136,0.13179189,68992.0,68991.0,9.06430379]
[1722212340125,0.26177825,68992.0,68991.0,9.06430379]
[1722212340393,0.26177825,68992.0,68991.0,9.003]
[1722212340394,0.82383452,68992.0,68991.0,9.003]
[1722212340605,1.12780582,68992.0,68991.0,9.003]
[1722212340796,1.11794746,68992.0,68991.0,9.003]
[1722212341008,1.16794746,68992.0,68991.0,9.003]
[1722212341206,1.12843819,68992.0,68991.0,9.003]
[1722212341409,1.16795357,68992.0,68991.0,9.003]
[1722212341620,1.13195357,68992.0,68991.0,9.003]
[1722212342155,1.22869776,68992.0,68991.0,9.0]
[1722212342519,1.36404893,68992.0,68991.0,9.0]
[1722212342667,1.13213893,68992.0,68991.0,9.0]
[1722212342869,1.34565055,68992.0,68991.0,9.0]
[1722212343072,1.13186126,68992.0,68991.0,9.001]
[1722212344061,1.10910807,68992.0,68991.0,9.001]
[1722212344412,1.12310807,68992.0,68991.0,9.001]
[1722212344781,1.10910807,68992.0,68991.0,9.001]
[1722212344992,0.12304134,68992.0,68991.0,9.26721657]
[1722212345194,0.08704134,68992.0,68991.0,9.580785]
[1722212345398,0.128,68992.0,68991.0,9.812699]
[1722212345596,0.078,68992.0,68991.0,9.812699]
[1722212345796,0.028,68992.0,68991.0,10.044613]
[1722212346034,0.028,68992.0,68991.0,10.189213]
[1722212346237,0.014,68992.0,68991.0,10.189213]
[1722212346601,0.1,68995.0,68994.0,0.811664]
[1722212346966,0.04332893,68999.0,68998.0,0.23189]
[1722212347173,0.09333625,69000.0,68999.0,0.34783]
[1722212347378,0.05,69000.0,68999.0,0.87373379]
[1722212347589,0.04333625,69001.0,69000.0,0.811594]
[1722212347835,0.09333625,69001.0,69000.0,0.811594]
[1722212348261,0.09333625,69001.0,69000.0,0.810594]
[1722212348262,0.1,69001.0,69000.0,0.810594]
[1722212349145,0.16501006,69001.0,69000.0,0.810594]
[1722212349371,0.16501006,69001.0,69000.0,0.347826]
[1722212349372,0.101,69001.0,69000.0,0.347826]
[1722212349538,0.20936836,69001.0,69000.0,0.57971]
[1722212349703,0.101,69001.0,69000.0,0.57871]
[1722212349888,0.18769223,69001.0,69000.0,0.57871]
[1722212350090,0.18769223,69001.0,69000.0,0.810594]
[1722212350368,0.08769223,69001.0,69000.0,1.042478]
[1722212350633,0.08769223,69001.0,69000.0,1.59425757]
[1722212350634,0.001,69001.0,69000.0,1.59425757]
[1722212350855,0.001,69001.0,69000.0,1.84451714]
[1722212351104,0.06502074,69014.0,69008.0,0.231855]
[1722212351332,0.10084,69015.0,69014.0,0.115918]
[1722212351576,0.16586074,69015.0,69014.0,0.811429]
[1722212352028,0.10084,69015.0,69014.0,0.811429]
[1722212352231,0.18750446,69015.0,69014.0,0.811429]
[1722212352750,0.18749336,69015.0,69014.0,0.811429]
[1722212352947,0.16582954,69015.0,69014.0,0.817429]
[1722212353684,0.10084,69015.0,69014.0,0.817429]
[1722212354065,0.2091441,69015.0,69014.0,0.585592]
[1722212354243,0.10084,69015.0,69014.0,0.006]
[1722212354586,0.10084,69015.0,69014.0,0.820429]
[1722212354784,0.2091289,69015.0,69014.0,0.820429]
[1722212354987,0.10084,69015.0,69014.0,0.820429]
[1722212355200,0.10084,69015.0,69014.0,0.588592]
[1722212355661,0.10084,69015.0,69014.0,0.820429]
[1722212356017,0.10084,69015.0,69014.0,0.356755]
[1722212356460,0.10987555,69015.0,69014.0,0.588592]
[1722212357280,0.10987555,69015.0,69014.0,0.579592]
[1722212357506,0.23981184,69015.0,69014.0,0.579592]
[1722212357712,0.23981184,69015.0,69014.0,0.580592]
[1722212358068,0.23981184,69015.0,69014.0,0.579592]
[1722212358271,0.10987558,69015.0,69014.0,0.579592]
[1722212358485,0.10084,69015.0,69014.0,0.579592]
[1722212358690,0.10484,69015.0,69014.0,0.579592]
[1722212359112,0.10084,69015.0,69014.0,0.579592]
[1722212359312,0.10084,69015.0,69014.0,0.349755]
[1722212359508,0.10987542,69015.0,69014.0,0.117918]
[1722212359718,0.10987542,69015.0,69014.0,0.579592]
[1722212360031,0.15908778,69015.0,69014.0,0.8743882]
[1722212360212,0.04412952,69015.0,69014.0,0.8693882]
[1722212360429,0.04412952,69015.0,69014.0,1.2463252]
[1722212360634,0.04412952,69015.0,69014.0,1.4043252]
[1722212360635,0.00084,69015.0,69014.0,1.4043252]
[1722212361206,0.00084,69015.0,69014.0,1.4273252]
[1722212361566,0.00084,69015.0,69014.0,1.6591622]
[1722212361830,0.00084,69015.0,69014.0,1.4717763]
[1722212363363,0.00084,69015.0,69014.0,1.9591622]
[1722212363611,0.00084,69015.0,69014.0,2.57547877]
[1722212363763,0.00084,69015.0,69014.0,2.34364177]
[1722212363963,0.00084,69015.0,69014.0,2.39709287]
[1722212364183,0.00084,69015.0,69014.0,2.58447877]
[1722212364350,0.00084,69015.0,69014.0,2.62692987]
[1722212364351,1e-06,69015.0,69014.0,2.62692987]
[1722212364553,1e-06,69015.0,69014.0,2.35009287]
[1722212364754,0.06245,69038.0,69032.0,1.345592]
[1722212364755,0.01245,69038.0,69032.0,1.345592]
[1722212364952,0.11245,69038.0,69032.0,1.345592]
[1722212365274,0.11245,69038.0,69032.0,1.46904723]
[1722212365606,0.01245,69038.0,69032.0,2.0509779]
[1722212365808,0.01245,69038.0,69032.0,2.0739779]
[1722212365979,0.01245,69038.0,69032.0,2.0295268]
[1722212366540,0.01245,69038.0,69032.0,2.2613028]
[1722212366751,0.01245,69038.0,69032.0,2.3557539]
[1722212366962,0.01245,69038.0,69032.0,2.3057539]
[1722212367172,0.01245,69038.0,69032.0,2.2753028]
[1722212367375,0.01245,69038.0,69032.0,2.3197539]
[1722212367581,0.01245,69038.0,69032.0,1.7739779]
[1722212367994,0.01245,69038.0,69032.0,1.7879779]
[1722212368425,0.01245,69038.0,69032.0,1.65052267]
[1722212368844,0.01245,69038.0,69032.0,1.62007157]
[1722212369335,0.01245,69038.0,69032.0,1.63407157]
[1722212369535,0.01245,69038.0,69032.0,1.62007157]
[1722212369659,0.01245,69038.0,69032.0,1.86584757]
[1722212369865,0.01245,69038.0,69032.0,1.78433114]
[1722212370065,0.01245,69038.0,69032.0,1.77033114]
[1722212370270,0.01245,69038.0,69032.0,1.78433114]
[1722212370716,0.01245,69038.0,69032.0,1.77033114]
[1722212370922,0.01245,69038.0,69032.0,2.04644941]
[1722212371286,0.01245,69038.0,69032.0,2.06044941]
[1722212371405,0.01245,69038.0,69032.0,1.82867341]
[1722212371816,0.01245,69038.0,69032.0,1.67841384]
[1722212372024,0.01245,69038.0,69032.0,1.396592]
[1722212372236,0.10083006,69033.0,69032.0,0.86955827]
[1722212372430,0.00083006,69033.0,69032.0,1.209992]
[1722212372626,0.00083006,69033.0,69032.0,1.3309912]
[1722212373149,0.00083006,69033.0,69032.0,1.49525077]
[1722212373736,0.00083006,69033.0,69032.0,1.79525077]
[1722212373967,0.00083006,69033.0,69032.0,1.95795077]
[1722212374406,0.00083006,69033.0,69032.0,2.23972677]
[1722212374612,0.00083006,69033.0,69032.0,2.18972677]
[1722212375035,0.00083006,69033.0,69032.0,2.23406904]
[1722212375711,0.00083006,69033.0,69032.0,2.00229304]
[1722212375918,0.00083006,69033.0,69032.0,1.98829304]
[1722212376256,0.00083006,69033.0,69032.0,2.00229304]
[1722212376460,0.00083006,69033.0,69032.0,1.88129384]
[1722212376665,0.00083006,69033.0,69032.0,1.386692]
[1722212376911,0.00083006,69033.0,69032.0,1.223992]
[1722212377085,0.00083006,69033.0,69032.0,1.209992]
[1722212377718,0.00083006,69033.0,69032.0,1.223992]
[1722212377923,0.00083006,69033.0,69032.0,1.070992]
[1722212378163,0.05083006,69033.0,69032.0,3.839216]
[1722212378339,0.10083006,69033.0,69032.0,3.59344]
[1722212378651,0.10083006,69033.0,69032.0,3.014]
[1722212378652,0.24523006,69033.0,69032.0,3.014]
[1722212378861,0.36111606,69033.0,69032.0,3.014]
[1722212379073,0.25426434,69033.0,69032.0,3.014]
[1722212379243,0.2542643,69033.0,69032.0,3.014]
[1722212379466,0.24523006,69033.0,69032.0,3.361664]
[1722212379636,0.24523006,69033.0,69032.0,3.129888]
[1722212379838,0.24523006,69033.0,69032.0,3.347664]
[1722212380066,0.24523006,69033.0,69032.0,3.129888]
[1722212380273,0.24523006,69033.0,69032.0,3.140888]
[1722212380742,0.24523006,69033.0,69032.0,3.129888]
[1722212381158,0.24723006,69033.0,69032.0,3.362664]
[1722212381562,0.24523006,69033.0,69032.0,3.361664]
[1722212381764,0.24823006,69033.0,69032.0,3.362664]
[1722212382235,0.25123006,69033.0,69032.0,3.362664]
[1722212382641,0.24823006,69033.0,69032.0,3.58044]
[1722212382851,0.10383006,69033.0,69032.0,3.58044]
[1722212383483,0.10383006,69033.0,69032.0,3.001]
[1722212383907,0.10083006,69033.0,69032.0,3.002]
[1722212384330,0.10183006,69033.0,69032.0,3.002]
[1722212384754,0.10083006,69033.0,69032.0,3.117888]
[1722212384964,0.10083006,69033.0,69032.0,3.002]
[1722212385173,0.10483006,69033.0,69032.0,3.002]
[1722212385376,0.10483006,69033.0,69032.0,3.0]
[1722212385526,0.10083006,69033.0,69032.0,3.0]
[1722212385733,0.10883006,69033.0,69032.0,3.001]
[1722212386339,0.10883006,69033.0,69032.0,0.348664]
[1722212387099,0.10883006,69033.0,69032.0,0.116888]
[1722212387267,0.10883006,69033.0,69032.0,0.348664]
[1722212387470,0.10883006,69033.0,69032.0,0.116888]
[1722212388137,0.10883006,69033.0,69032.0,0.001]
[1722212388973,0.10883006,69033.0,69032.0,0.116888]
[1722212389412,0.10883006,69033.0,69032.0,0.001]
[1722212389413,0.15202964,69033.0,69032.0,0.001]
[1722212389627,0.15202964,69033.0,69031.0,0.07512979]
[1722212389628,0.1,69032.0,69031.0,0.07512979]
[1722212389840,0.15223784,69032.0,69031.0,0.07512979]
[1722212390289,0.15223784,69032.0,69021.0,0.30694179]
[1722212390290,0.1,69022.0,69021.0,0.07512979]
[1722212390525,0.1,69022.0,69021.0,0.19103579]
[1722212390526,0.1616,69022.0,69021.0,0.19103579]
[1722212391420,0.1616,69022.0,69021.0,0.42284879]
[1722212391592,0.1616,69022.0,69021.0,0.08112979]
[1722212391835,0.20486676,69022.0,69021.0,0.08112979]
[1722212392052,0.24813352,69022.0,69021.0,0.08112979]
[1722212392259,0.1616,69022.0,69021.0,0.08112979]
[1722212392468,0.27119904,69022.0,69021.0,0.08112979]
[1722212392680,0.2697669,69022.0,69021.0,0.08112979]
[1722212392891,0.17063499,69022.0,69021.0,0.08112979]
[1722212393308,0.1616,69022.0,69021.0,0.42884879]
[1722212393761,0.24816285,69022.0,69021.0,0.42884879]
[1722212393967,0.18756285,69022.0,69021.0,0.72072887]
[1722212394171,0.1442801,69022.0,69021.0,0.95254187]
[1722212394348,0.14628604,69022.0,69021.0,0.88647479]
[1722212394790,0.103,69022.0,69021.0,0.88647479]
[1722212394999,0.0942853,69022.0,69021.0,0.88647479]
[1722212395207,0.051,69022.0,69021.0,1.11828779]
[1722212395415,0.0432853,69027.0,69023.0,0.231806]
[1722212395416,0.05,69024.0,69023.0,0.231806]
[1722212395624,0.05,69026.0,69025.0,0.1159]
[1722212395799,0.05,69026.0,69025.0,0.5795]
[1722212396018,0.05,69026.0,69025.0,0.85770295]
[1722212397059,0.05,69026.0,69025.0,0.85670295]
[1722212397610,0.00083006,69033.0,69031.0,0.153]
[1722212397820,0.00083006,69033.0,69032.0,1.116316]
[1722212397967,0.00083006,69033.0,69032.0,1.355792]
[1722212398168,0.00083006,69033.0,69032.0,1.50605157]
[1722212398373,0.00083006,69033.0,69032.0,1.73782757]
[1722212398777,0.00083006,69033.0,69032.0,1.355792]
[1722212398986,0.00083006,69033.0,69032.0,1.22046759]
[1722212399181,0.00083006,69033.0,69032.0,1.178792]
[1722212400120,0.00183006,69033.0,69032.0,1.192792]
[1722212400524,0.00083006,69033.0,69032.0,1.178792]
[1722212400725,0.10083006,69033.0,69032.0,0.808216]
[1722212401020,0.10183006,69033.0,69032.0,0.822216]
[1722212401230,0.10183006,69033.0,69032.0,0.92585058]
[1722212401231,0.05183006,69033.0,69032.0,0.92585058]
[1722212401440,0.00183006,69033.0,69032.0,0.92585058]
[1722212401841,0.05183006,69033.0,69032.0,0.822216]
[1722212402051,0.10183006,69033.0,69032.0,0.822216]
[1722212402223,0.05183006,69033.0,69032.0,0.822216]
[1722212402442,0.05183006,69033.0,69032.0,0.836216]
[1722212402640,0.00083006,69033.0,69032.0,0.975216]
[1722212402958,0.00083006,69033.0,69032.0,0.85985587]
[1722212403115,0.00083006,69033.0,69032.0,0.961216]
[1722212403497,0.05083006,69033.0,69032.0,0.822216]
[1722212403696,0.05183006,69033.0,69032.0,0.836216]
[1722212404045,0.05083006,69033.0,69032.0,0.822216]
[1722212404450,0.05083006,69033.0,69032.0,0.94125058]
[1722212405149,0.00083006,69033.0,69032.0,1.067992]
[1722212405350,0.00083006,69033.0,69032.0,1.229992]
[1722212405862,0.00083006,69033.0,69032.0,2.03752757]
[1722212406018,6e-08,69033.0,69032.0,2.21462757]
[1722212406225,6e-08,69033.0,69032.0,2.57978714]
[1722212406627,0.01245,69038.0,69037.0,1.427674]
[1722212406827,0.01097199,69038.0,69037.0,1.69993357]
[1722212407027,0.01097199,69038.0,69037.0,1.46817457]
[1722212407453,0.01097199,69038.0,69037.0,1.317915]
[1722212407655,0.01097199,69038.0,69037.0,1.34906986]
[1722212407862,0.01097199,69038.0,69037.0,1.64906986]
[1722212408058,0.01097199,69038.0,69037.0,1.22606986]
[1722212408262,0.11097199,69038.0,69037.0,0.810156]
[1722212408505,0.06097199,69038.0,69037.0,0.810156]
[1722212408720,0.11097199,69038.0,69037.0,0.810156]
[1722212408967,0.11097199,69038.0,69037.0,0.824156]
[1722212409171,0.17594187,69038.0,69037.0,0.014]
[1722212409373,0.17594187,69038.0,69021.0,0.13662979]
[1722212409374,0.1,69022.0,69021.0,0.07512979]
[1722212409578,0.1,69022.0,69021.0,0.115906]
[1722212409749,0.246,69022.0,69021.0,0.115906]
[1722212409955,0.246,69022.0,69021.0,0.347719]
[1722212410177,0.1,69017.0,69016.0,0.347743]
[1722212410379,0.1649778,69017.0,69016.0,0.811403]
[1722212410624,0.1649778,69017.0,69016.0,0.347743]
[1722212410625,0.1,69017.0,69016.0,0.347743]
[1722212410832,0.18663707,69017.0,69016.0,0.347743]
[1722212411066,0.1,69017.0,69016.0,0.347743]
[1722212411992,0.20829634,69017.0,69016.0,0.347743]
[1722212412223,0.101,69017.0,69016.0,0.354743]
[1722212412423,0.20928104,69017.0,69016.0,0.354743]
[1722212412788,0.20928104,69017.0,69015.0,0.000924]
[1722212412789,0.1,69016.0,69015.0,0.000924]
[1722212412985,0.1,69016.0,69015.0,0.348673]
[1722212413413,0.10903484,69016.0,69015.0,0.87790308]
[1722212413665,0.20827706,69016.0,69015.0,0.812339]
[1722212413855,0.18662068,69016.0,69015.0,0.812339]
[1722212414164,0.1,69016.0,69015.0,0.348673]
[1722212414485,0.1,69016.0,69015.0,0.000924]
[1722212414486,0.10903448,69016.0,69015.0,0.000924]
[1722212414824,0.23897173,69016.0,69015.0,0.000924]
[1722212415260,0.22494948,69016.0,69015.0,0.000924]
[1722212415604,0.59968089,69016.0,69015.0,0.000924]
[1722212415804,0.41566554,69016.0,69015.0,0.000924]
[1722212416148,0.745292,69002.0,69001.0,0.00017445]
[1722212416348,0.2486,69002.0,69001.0,0.00017445]
[1722212416489,0.2576361,69002.0,69001.0,0.00017445]
[1722212416691,0.38751728,69002.0,69001.0,0.00017445]
[1722212417120,0.38751728,69002.0,69001.0,0.11611445]
[1722212417121,0.2576361,69002.0,69001.0,0.11611445]
[1722212417320,0.2576361,69002.0,69001.0,0.41349687]
[1722212417519,0.2486,69002.0,69001.0,0.41349687]
[1722212417771,0.183,69002.0,69001.0,0.57987445]
[1722212417979,0.1,69002.0,69001.0,0.34799445]
[1722212418191,0.1,69002.0,69001.0,0.11611445]
[1722212418192,0.18855887,69002.0,69001.0,0.11611445]
[1722212418308,0.18856454,69002.0,69001.0,0.11611445]
[1722212418513,0.102,69002.0,69001.0,0.34799445]
[1722212418712,0.18856457,69002.0,69001.0,0.57987445]
[1722212418914,0.18856457,69002.0,69001.0,0.00017445]
[1722212419115,0.18856457,69002.0,69001.0,0.11611445]
[1722212419314,0.18854947,69002.0,69001.0,0.11611445]
[1722212419535,0.18854947,69002.0,69001.0,0.34799445]
[1722212419716,0.1,69002.0,69001.0,0.11611445]
[1722212419950,0.18654947,69002.0,69001.0,0.62518767]
[1722212420152,0.18654947,69002.0,69001.0,0.58287445]
[1722212420153,0.16490042,69002.0,69001.0,0.58287445]
[1722212420352,0.1,69002.0,69001.0,0.57987445]
[1722212420637,0.1648944,69002.0,69001.0,0.81175445]
[1722212420836,0.14526192,69002.0,69001.0,0.81175445]
[1722212421059,0.102,69002.0,69001.0,0.81175445]
[1722212421413,0.14326192,69002.0,69001.0,0.81175445]
[1722212421642,0.1,69002.0,69001.0,0.81175445]
[1722212421857,0.1,69002.0,69001.0,0.81775445]
[1722212422861,0.1,69002.0,69001.0,0.81575445]
[1722212423271,0.1,69002.0,69001.0,0.81875445]
[1722212423887,0.1,69002.0,69001.0,0.58687445]
[1722212424249,0.1608,69002.0,69001.0,0.00717445]
[1722212424452,0.2405,69002.0,69001.0,0.00717445]
[1722212425558,0.34861326,69002.0,69001.0,0.00317445]
[1722212425804,0.2405,69002.0,69001.0,0.00317445]
[1722212426698,0.44290791,69002.0,69001.0,0.00317445]
[1722212426875,0.67478491,69002.0,69001.0,0.00317445]
[1722212427072,0.32696991,69002.0,69001.0,0.00317445]
[1722212427691,0.2405,69002.0,69001.0,0.07830424]
[1722212428300,0.2405,69002.0,69001.0,0.07922824]
[1722212428590,0.30532697,69002.0,69001.0,0.07922824]
[1722212428948,0.30532697,69002.0,69001.0,0.19516824]
[1722212429388,0.30532697,69002.0,69001.0,0.19216824]
[1722212429590,0.2405,69002.0,69001.0,0.42404824]
[1722212429884,0.2425,69002.0,69001.0,0.65592824]
[1722212430490,0.1,69002.0,69001.0,0.65592824]
[1722212430832,0.1,69002.0,69001.0,0.42604824]
[1722212431262,0.05,69002.0,69001.0,1.12168824]
[1722212431488,0.05,69002.0,69001.0,1.23685706]
[1722212431748,0.05,69012.0,69002.0,0.0664]
[1722212431897,0.05,69014.0,69013.0,0.5796]
[1722212432107,0.05,69014.0,69013.0,0.81144]
[1722212432293,0.1,69014.0,69013.0,0.82439019]
[1722212433336,0.05,69014.0,69013.0,0.8936358]
[1722212433545,0.05,69014.0,69013.0,1.1254758]
[1722212434168,0.05,69014.0,69013.0,1.1234758]
[1722212434587,0.1,69014.0,69013.0,0.36571019]
[1722212434799,0.1,69014.0,69013.0,0.35871019]
[1722212435037,0.1786,69014.0,69013.0,0.35871019]
[1722212435227,0.1,69014.0,69013.0,0.59955019]
[1722212435426,0.05,69014.0,69013.0,0.89885819]
[1722212435890,0.05,69014.0,69013.0,1.20389819]
[1722212436004,0.1,69014.0,69013.0,1.18689819]
[1722212436403,0.00084,69015.0,69013.0,1.18689819]
[1722212436404,0.00084,69015.0,69014.0,1.043266]
[1722212436610,0.06478089,69033.0,69014.0,1.043266]
[1722212436611,0.1,69032.0,69031.0,0.347668]
[1722212436833,0.1,69032.0,69031.0,0.811226]
[1722212437031,0.1,69032.0,69031.0,1.05581558]
[1722212438538,0.05,69039.0,69037.0,1.042915]
[1722212438743,0.05,69039.0,69037.0,1.05567147]
[1722212438985,0.05,69039.0,69037.0,1.12313947]
[1722212439176,0.1,69039.0,69037.0,1.12313947]
[1722212439549,0.05,69039.0,69037.0,1.12313947]
[1722212439754,0.1,69048.0,69037.0,1.84635804]
[1722212439964,0.1,69048.0,69037.0,1.92515804]
[1722212440170,9.9e-07,69038.0,69037.0,1.97715804]
[1722212440344,9.9e-07,69038.0,69037.0,2.15691704]
[1722212440573,9.9e-07,69038.0,69037.0,1.92515804]
[1722212440947,9.9e-07,69038.0,69037.0,2.22515804]
[1722212441372,9.9e-07,69038.0,69037.0,2.27515804]
[1722212441574,9.9e-07,69038.0,69037.0,2.27715804]
[1722212441781,9.9e-07,69038.0,69037.0,2.23915804]
[1722212442106,9.9e-07,69038.0,69037.0,2.28915804]
[1722212442493,9.9e-07,69038.0,69037.0,1.93915804]
[1722212442781,9.9e-07,69038.0,69037.0,1.85713947]
[1722212443009,9.9e-07,69038.0,69037.0,1.83413947]
[1722212443225,0.05000099,69038.0,69037.0,1.61367147]
[1722212443425,0.05000099,69038.0,69037.0,1.31367147]
[1722212443558,0.05000099,69038.0,69037.0,1.32767147]
[1722212443956,0.05000099,69038.0,69037.0,1.47793104]
[1722212444176,0.05000099,69038.0,69037.0,1.32767147]
[1722212445541,0.10000099,69038.0,69037.0,1.32767147]
[1722212445860,0.05000099,69038.0,69037.0,1.32767147]
[1722212446061,9.9e-07,69038.0,69037.0,1.32767147]
[1722212446394,9.9e-07,69038.0,69037.0,1.48067147]
[1722212446593,9.9e-07,69038.0,69037.0,1.63093104]
[1722212446801,0.10000099,69038.0,69037.0,1.47793104]
[1722212447004,0.10000099,69038.0,69037.0,1.32767147]
[1722212447824,0.10000099,69038.0,69037.0,0.85191247]
[1722212448432,0.05000099,69038.0,69037.0,0.85191247]
[1722212448976,0.10000099,69038.0,69037.0,0.82391247]
[1722212449182,0.10000099,69038.0,69037.0,0.83791247]
[1722212449943,0.10000099,69038.0,69037.0,0.82391247]
[1722212450411,0.05000099,69038.0,69037.0,0.82391247]
[1722212450703,9.9e-07,69038.0,69037.0,1.05567147]
[1722212450929,0.05000099,69038.0,69037.0,1.14647147]
[1722212451126,0.05000099,69038.0,69037.0,1.06967147]
[1722212452589,0.10000099,69038.0,69037.0,0.83791247]
[1722212452789,0.10100099,69038.0,69037.0,0.85191247]
[1722212453342,0.10100099,69038.0,69037.0,0.15663547]
[1722212453475,0.24780099,69038.0,69037.0,0.15663547]
[1722212453674,0.24780099,69038.0,69037.0,0.62015347]
[1722212453930,0.10100099,69038.0,69037.0,0.85179043]
[1722212454545,0.10000099,69038.0,69037.0,0.83779043]
[1722212455008,0.10100099,69038.0,69037.0,0.85179043]
[1722212455397,0.10000099,69038.0,69037.0,0.83779043]
[1722212455775,0.05400099,69038.0,69037.0,0.92156947]
[1722212455969,0.10400099,69038.0,69037.0,1.06954943]
[1722212456171,0.10000099,69038.0,69037.0,0.83779043]
[1722212456411,0.10000099,69038.0,69037.0,1.08354943]
[1722212456586,0.10100099,69038.0,69037.0,1.08354943]
[1722212456789,0.10100099,69038.0,69037.0,1.19190437]
[1722212457059,0.05100099,69038.0,69037.0,1.17790437]